bitfinex/quotes_BTCUSD_20230120
["timestamp","ask_amount","ask_price","bid_price","bid_amount"]
[1674202607024,0.92750472,20958.0,20957.0,0.00714003]
[1674202607814,1.40458748,20958.0,20957.0,0.00714003]
[1674202608092,1.40458748,20958.0,20957.0,0.00814003]
[1674202608638,0.92744348,20958.0,20957.0,0.00814003]
[1674202608899,0.92744348,20958.0,20957.0,0.00714003]
[1674202609384,1.01044348,20958.0,20957.0,0.00814003]
[1674202609410,1.44756734,20958.0,20957.0,0.00814003]
[1674202609644,0.97042334,20958.0,20957.0,0.00814003]
[1674202610151,1.44756734,20958.0,20957.0,0.00814003]
[1674202610475,1.92471134,20958.0,20957.0,0.00814003]
[1674202610733,1.62477258,20958.0,20957.0,0.00814003]
[1674202611553,0.67048458,20958.0,20957.0,0.00814003]
[1674202612070,0.97048458,20958.0,20957.0,0.00814003]
[1674202612335,0.67048458,20958.0,20957.0,0.00814003]
[1674202612593,0.97048458,20958.0,20957.0,0.00814003]
[1674202612880,1.44762858,20958.0,20957.0,0.00814003]
[1674202614766,0.55612386,20958.0,20957.0,0.00814003]
[1674202615028,0.119,20958.0,20957.0,0.00814003]
[1674202615298,0.119,20958.0,20957.0,0.34811103]
[1674202615561,0.23336072,20958.0,20957.0,0.00814003]
[1674202616316,0.119,20958.0,20957.0,0.00814003]
[1674202616830,0.119,20958.0,20957.0,0.40054713]
[1674202618700,0.119,20958.0,20957.0,1.18955213]
[1674202619800,0.119,20958.0,20957.0,1.66671913]
[1674202620832,0.119,20958.0,20957.0,1.18955213]
[1674202621170,0.119,20958.0,20957.0,1.33955213]
[1674202621360,0.119,20958.0,20957.0,1.81671913]
[1674202621882,0.119,20958.0,20957.0,2.4075699]
[1674202622145,0.119,20958.0,20957.0,2.29420348]
[1674202623215,0.036,20958.0,20957.0,2.29320348]
[1674202623497,0.111,20958.0,20957.0,2.29520348]
[1674202623758,0.111,20958.0,20957.0,1.90279638]
[1674202624056,0.111,20958.0,20957.0,2.36768175]
[1674202628159,0.111,20958.0,20957.0,2.21768175]
[1674202629466,0.111,20958.0,20957.0,2.73012948]
[1674202629724,0.111,20958.0,20957.0,2.96193353]
[1674202630257,0.111,20958.0,20957.0,2.79133696]
[1674202630518,0.111,20958.0,20957.0,2.96066379]
[1674202630519,0.036,20958.0,20957.0,2.96066379]
[1674202630779,0.105,20958.0,20957.0,2.96266379]
[1674202631040,0.036,20958.0,20957.0,2.96066379]
[1674202631295,0.045,20958.0,20957.0,2.48595697]
[1674202631590,0.045,20958.0,20957.0,2.37266431]
[1674202632127,0.04490983,20958.0,20957.0,2.37266431]
[1674202632384,0.04490983,20958.0,20957.0,2.39514598]
[1674202632638,0.04490983,20958.0,20957.0,2.03829264]
[1674202633127,0.04490983,20958.0,20957.0,2.36922181]
[1674202633129,0.04490983,20958.0,20957.0,2.19789498]
[1674202633393,0.04490983,20958.0,20957.0,2.08372555]
[1674202633652,0.04490983,20958.0,20957.0,1.75279638]
[1674202633953,0.04490983,20958.0,20957.0,2.18224048]
[1674202634217,0.04490983,20958.0,20957.0,2.29640991]
[1674202634475,0.04490983,20958.0,20957.0,1.86696581]
[1674202635004,0.04490983,20958.0,20957.0,2.22732785]
[1674202635265,0.04490983,20958.0,20957.0,2.19267818]
[1674202635531,0.04490983,20958.0,20957.0,1.86696581]
[1674202635844,0.04490983,20958.0,20957.0,1.75279638]
[1674202636133,0.04490983,20958.0,20957.0,1.86696581]
[1674202636406,0.04490983,20958.0,20957.0,2.03829264]
[1674202636664,0.04490983,20958.0,20957.0,1.86696581]
[1674202637193,0.04490983,20958.0,20957.0,2.19976676]
[1674202637721,0.04490983,20958.0,20957.0,2.08559733]
[1674202643584,0.04490983,20958.0,20957.0,2.1503691]
[1674202643839,0.04490983,20958.0,20957.0,1.75279638]
[1674202644098,0.04490983,20958.0,20957.0,1.86696581]
[1674202645090,0.04490983,20958.0,20957.0,2.03829264]
[1674202645617,0.04490983,20958.0,20957.0,2.42791743]
[1674202645839,0.04490983,20958.0,20957.0,2.03829264]
[1674202646592,0.04490983,20958.0,20957.0,1.86696581]
[1674202647358,0.04490983,20958.0,20957.0,2.19805525]
[1674202647607,0.04490983,20958.0,20957.0,1.86696581]
[1674202647882,0.04490983,20958.0,20957.0,2.24988505]
[1674202648944,0.04490983,20958.0,20957.0,2.03829264]
[1674202649213,0.04490983,20958.0,20957.0,2.70212997]
[1674202649752,0.04490983,20958.0,20957.0,2.37028072]
[1674202650017,0.04490983,20958.0,20957.0,2.26773962]
[1674202650244,0.04490983,20958.0,20957.0,2.43906645]
[1674202651845,0.04490983,20958.0,20957.0,2.26773962]
[1674202652419,0.04490983,20958.0,20957.0,2.77155271]
[1674202653396,0.04490983,20958.0,20957.0,2.65738328]
[1674202653656,0.04490983,20958.0,20957.0,2.26780355]
[1674202653914,0.04490983,20958.0,20957.0,2.77175141]
[1674202654427,0.04490983,20958.0,20957.0,2.43913038]
[1674202655453,0.04490983,20958.0,20957.0,3.11263488]
[1674202655977,0.04490983,20958.0,20957.0,2.71170565]
[1674202656283,0.04490983,20958.0,20957.0,3.32033136]
[1674202657531,0.04490983,20958.0,20957.0,3.14900453]
[1674202658030,0.04490983,20958.0,20957.0,3.32050894]
[1674202658543,0.04490983,20958.0,20957.0,2.7522672]
[1674202658800,0.04490983,20958.0,20957.0,2.24814257]
[1674202659320,0.04490983,20958.0,20957.0,3.20817788]
[1674202659583,0.04490983,20958.0,20957.0,3.09383468]
[1674202660636,0.04490983,20958.0,20957.0,3.31091172]
[1674202661154,0.04490983,20958.0,20957.0,2.86592252]
[1674202661456,0.04490983,20958.0,20957.0,2.75281524]
[1674202662210,0.04490983,20958.0,20957.0,3.31115904]
[1674202663554,0.04490983,20958.0,20957.0,3.13965463]
[1674202664265,0.04490983,20958.0,20957.0,2.7528914]
[1674202664790,0.04490983,20958.0,20957.0,3.1331192]
[1674202665048,0.04490983,20958.0,20957.0,3.30467715]
[1674202665562,0.04490983,20958.0,20957.0,3.1331192]
[1674202666338,0.04490983,20958.0,20957.0,3.41758501]
[1674202666611,0.04490983,20958.0,20957.0,3.1344426]
[1674202667095,0.04490983,20958.0,20957.0,3.41890841]
[1674202667563,0.04490983,20958.0,20957.0,3.19012292]
[1674202669409,0.04483371,20958.0,20957.0,3.19012292]
[1674202671196,0.04483371,20958.0,20957.0,3.27453024]
[1674202671446,0.04483371,20958.0,20957.0,3.50335188]
[1674202673306,0.04483371,20958.0,20957.0,3.27453024]
[1674202674367,0.04483371,20958.0,20957.0,3.50336135]
[1674202674934,0.04483371,20958.0,20957.0,3.27453024]
[1674202675702,0.04483371,20958.0,20957.0,2.99006443]
[1674202675971,0.04483371,20958.0,20957.0,3.2761017]
[1674202677265,0.04483371,20958.0,20957.0,3.50493292]
[1674202677508,0.04483371,20958.0,20957.0,3.2761017]
[1674202678801,0.04483371,20958.0,20957.0,2.99006443]
[1674202679072,0.04483371,20958.0,20957.0,3.27610871]
[1674202681390,0.04483371,20958.0,20957.0,2.99006443]
[1674202681888,0.04483371,20958.0,20957.0,3.27612203]
[1674202682692,0.04483371,20958.0,20957.0,2.99006443]
[1674202682942,0.04483371,20958.0,20957.0,3.50497898]
[1674202683515,0.04483371,20958.0,20957.0,2.99006443]
[1674202683975,0.04483371,20958.0,20957.0,3.27612845]
[1674202684245,0.04483371,20958.0,20957.0,3.50498532]
[1674202685332,0.04483371,20958.0,20957.0,3.27612845]
[1674202686401,0.04483371,20958.0,20957.0,2.52449349]
[1674202686654,0.04483371,20958.0,20957.0,2.87304647]
[1674202687698,0.04483371,20958.0,20957.0,3.15910472]
[1674202689052,0.04483371,20958.0,20957.0,2.87304647]
[1674202690938,0.04483371,20958.0,20957.0,3.15908006]
[1674202691480,0.04483371,20958.0,20957.0,2.87304647]
[1674202692317,0.04483371,20958.0,20957.0,3.1590314]
[1674202692592,0.04483371,20958.0,20957.0,2.87304647]
[1674202693370,0.04474483,20958.0,20957.0,2.87304647]
[1674202701601,0.04474483,20958.0,20957.0,3.15907349]
[1674202703199,0.04474483,20958.0,20957.0,3.3878985]
[1674202703388,0.04474483,20958.0,20957.0,3.15907349]
[1674202703640,0.04474483,20958.0,20957.0,3.38789846]
[1674202704135,0.04474483,20958.0,20957.0,3.15907349]
[1674202707450,0.04474483,20958.0,20957.0,2.87304647]
[1674202708499,0.04474483,20958.0,20957.0,3.15908795]
[1674202709023,0.04474483,20958.0,20957.0,2.87304647]
[1674202709262,0.04474483,20958.0,20957.0,3.15909031]
[1674202709547,0.04474483,20958.0,20957.0,2.87304647]
[1674202709777,0.04474483,20958.0,20957.0,3.15908736]
[1674202709992,0.04474483,20958.0,20957.0,2.87304647]
[1674202710487,0.04474483,20958.0,20957.0,3.15908769]
[1674202711346,0.04474483,20958.0,20957.0,2.87304647]
[1674202713793,0.39193576,20962.0,20958.0,0.16148302]
[1674202714052,0.3135,20963.0,20960.0,0.28602468]
[1674202714053,0.36944483,20961.0,20960.0,0.28602468]
[1674202714311,0.36944483,20961.0,20960.0,1.86491787]
[1674202715162,0.42844483,20961.0,20960.0,1.86791787]
[1674202716189,0.059,20961.0,20960.0,1.753508]
[1674202716435,0.059,20961.0,20960.0,2.15587553]
[1674202716922,0.059,20961.0,20960.0,2.44190021]
[1674202717642,0.059,20961.0,20960.0,2.76817296]
[1674202717884,0.059,20961.0,20960.0,2.7681715]
[1674202718375,0.059,20961.0,20960.0,2.2702854]
[1674202719892,0.059,20961.0,20960.0,3.19823814]
[1674202720143,0.059,20961.0,20960.0,3.37215301]
[1674202720386,0.059,20961.0,20960.0,2.79587061]
[1674202720626,0.059,20961.0,20960.0,2.50984593]
[1674202720873,0.059,20961.0,20960.0,2.83182515]
[1674202721457,0.40517796,20965.0,20960.0,2.54284593]
[1674202721658,0.40517796,20965.0,20963.0,0.15]
[1674202721897,0.40517796,20965.0,20964.0,1.274419]
[1674202722159,0.40517796,20965.0,20964.0,1.424419]
[1674202722645,0.40517796,20965.0,20964.0,1.460419]
[1674202722899,0.45917796,20965.0,20964.0,1.313419]
[1674202723864,0.45917796,20965.0,20964.0,1.463419]
[1674202724104,0.054,20965.0,20964.0,1.463419]
[1674202724581,0.054,20965.0,20964.0,1.313419]
[1674202725119,0.054,20965.0,20964.0,1.790427]
[1674202725896,0.44816331,20965.0,20964.0,1.790427]
[1674202726681,0.44816331,20965.0,20964.0,1.313419]
[1674202727912,0.054,20965.0,20964.0,1.313419]
[1674202728895,0.47518233,20965.0,20964.0,1.313419]
[1674202729144,0.9695033,20965.0,20964.0,0.039]
[1674202729393,1.29397193,20965.0,20964.0,0.039]
[1674202729640,1.12243085,20965.0,20964.0,0.039]
[1674202729880,0.67672513,20965.0,20964.0,0.039]
[1674202730626,0.99793813,20965.0,20964.0,0.039]
[1674202731104,0.67672513,20965.0,20964.0,0.039]
[1674202731350,1.59326385,20965.0,20964.0,0.039]
[1674202732090,1.74505585,20965.0,20964.0,0.039]
[1674202732338,1.95112013,20965.0,20964.0,0.039]
[1674202732586,2.06548085,20965.0,20964.0,0.039]
[1674202732850,3.34239487,20965.0,20964.0,0.039]
[1674202733095,3.33233804,20965.0,20964.0,0.039]
[1674202733340,2.05783641,20965.0,20964.0,0.039]
[1674202733588,2.37410941,20965.0,20964.0,0.039]
[1674202733899,3.32821745,20965.0,20964.0,0.039]
[1674202734092,3.32821758,20965.0,20964.0,0.039]
[1674202734564,2.37410941,20965.0,20964.0,0.039]
[1674202735047,2.05783641,20965.0,20964.0,0.039]
[1674202735297,3.33522819,20965.0,20964.0,0.039]
[1674202735557,2.38111641,20965.0,20964.0,0.039]
[1674202736041,2.05783641,20965.0,20964.0,0.039]
[1674202736303,2.39092741,20965.0,20964.0,0.039]
[1674202736550,2.16220597,20965.0,20964.0,0.039]
[1674202736807,1.94329669,20965.0,20964.0,0.03888386]
[1674202737058,2.10554978,20965.0,20964.0,0.03888386]
[1674202737306,2.10745178,20965.0,20964.0,0.03888386]
[1674202737537,1.77199678,20965.0,20964.0,0.03888386]
[1674202737787,2.26089869,20965.0,20964.0,0.03888386]
[1674202738045,2.08959878,20965.0,20964.0,0.03888386]
[1674202739087,1.77199678,20965.0,20964.0,0.03888386]
[1674202739327,2.08793278,20965.0,20964.0,0.03888386]
[1674202739823,1.77199678,20965.0,20964.0,0.03888386]
[1674202740067,2.09950178,20965.0,20964.0,0.03888386]
[1674202740320,1.77199678,20965.0,20964.0,0.03888386]
[1674202740588,1.65781506,20965.0,20964.0,0.03888386]
[1674202740828,1.77199678,20965.0,20964.0,0.03888386]
[1674202741068,2.09941578,20965.0,20964.0,0.03888386]
[1674202741418,1.98523406,20965.0,20964.0,0.03888386]
[1674202741613,1.18083006,20965.0,20964.0,0.03888386]
[1674202741853,0.0625,20965.0,20964.0,0.03888386]
[1674202742345,0.0625,20965.0,20964.0,0.53125202]
[1674202742346,0.054,20965.0,20964.0,0.53125202]
[1674202743602,0.054,20965.0,20964.0,1.48526802]
[1674202744140,0.054,20965.0,20964.0,1.81692302]
[1674202757543,0.054,20965.0,20964.0,1.48526802]
[1674202757852,0.054,20965.0,20964.0,1.79804702]
[1674202758587,0.054,20965.0,20964.0,1.64804702]
[1674202765756,0.054,20965.0,20964.0,1.33526802]
[1674202765991,0.054,20965.0,20964.0,1.65718302]
[1674202766506,0.054,20965.0,20964.0,1.48526802]
[1674202767017,0.054,20965.0,20964.0,1.81837702]
[1674202770951,0.054,20965.0,20964.0,1.66837702]
[1674202771453,0.054,20965.0,20964.0,1.32600886]
[1674202771720,0.054,20965.0,20964.0,0.99289986]
[1674202773573,0.054,20965.0,20964.0,1.14289986]
[1674202774103,0.054,20965.0,20964.0,2.35948692]
[1674202774361,0.05390608,20965.0,20964.0,2.80362914]
[1674202774925,0.05390608,20965.0,20964.0,2.39262308]
[1674202775151,0.05390608,20965.0,20964.0,2.80362914]
[1674202775411,0.05390608,20965.0,20964.0,2.39262308]
[1674202777643,0.05390608,20965.0,20964.0,2.39294032]
[1674202778961,0.05390608,20965.0,20964.0,2.35980416]
[1674202779212,0.05390608,20965.0,20964.0,3.29852471]
[1674202780071,0.05390608,20965.0,20964.0,2.97858472]
[1674202780235,0.05390608,20965.0,20964.0,3.29852489]
[1674202780494,0.05390608,20965.0,20964.0,2.97858472]
[1674202781005,0.05390608,20965.0,20964.0,2.64564726]
[1674202781313,0.05390608,20965.0,20964.0,2.85143366]
[1674202781511,0.05390608,20965.0,20964.0,3.02293952]
[1674202782556,0.05390608,20965.0,20964.0,3.30392648]
[1674202782819,0.05390608,20965.0,20964.0,3.53260096]
[1674202783627,0.0062793,20967.0,20964.0,3.52960096]
[1674202783955,0.0062793,20967.0,20965.0,0.9956872]
[1674202784147,0.0062793,20967.0,20966.0,0.307352]
[1674202784406,0.0062793,20967.0,20966.0,1.738238]
[1674202784880,0.0552793,20967.0,20966.0,1.774238]
[1674202785186,0.0552793,20967.0,20966.0,2.12551592]
[1674202785460,0.0062793,20967.0,20966.0,2.53652198]
[1674202785719,0.0062793,20967.0,20966.0,2.12551592]
[1674202785973,0.0552793,20967.0,20966.0,2.12951592]
[1674202793437,0.0552793,20967.0,20966.0,2.12412325]
[1674202795574,0.0552793,20967.0,20966.0,2.53512931]
[1674202795779,0.0552793,20967.0,20966.0,2.12412325]
[1674202796042,0.0552793,20967.0,20966.0,2.53512931]
[1674202796305,0.0552793,20967.0,20966.0,2.12412325]
[1674202796884,0.0552793,20967.0,20966.0,2.53512931]
[1674202798327,0.0552793,20967.0,20966.0,2.12412325]
[1674202799086,0.0552793,20967.0,20966.0,1.77284533]
[1674202799335,0.0552793,20967.0,20966.0,2.64323717]
[1674202801192,0.0552793,20967.0,20966.0,2.18385139]
[1674202801450,0.0552793,20967.0,20966.0,2.29817553]
[1674202801705,0.0552793,20967.0,20966.0,2.77513753]
[1674202802230,0.0552793,20967.0,20966.0,2.94664339]
[1674202802747,0.0552793,20967.0,20966.0,2.77513753]
[1674202803370,0.0062793,20967.0,20966.0,3.10209987]
[1674202803522,0.0512793,20967.0,20966.0,3.23396666]
[1674202803780,0.0512793,20967.0,20966.0,2.93533089]
[1674202804051,0.0512793,20967.0,20966.0,3.2350631]
[1674202804577,0.0512793,20967.0,20966.0,2.93533089]
[1674202805119,0.0512793,20967.0,20966.0,3.23499416]
[1674202807998,0.0512793,20967.0,20966.0,3.23575657]
[1674202808545,0.0512793,20967.0,20966.0,2.93533089]
[1674202809327,0.0512793,20967.0,20966.0,3.12140385]
[1674202809583,0.0512793,20967.0,20966.0,3.78106576]
[1674202810015,0.0512793,20967.0,20966.0,3.89567599]
[1674202811141,0.0512793,20967.0,20966.0,3.60983323]
[1674202811351,0.0512793,20967.0,20966.0,3.78103448]
[1674202813237,0.0512793,20967.0,20966.0,3.78105773]
[1674202813803,0.0512793,20967.0,20966.0,3.12112249]
[1674202814088,0.0512793,20967.0,20966.0,3.23527474]
[1674202814347,0.0512793,20967.0,20966.0,3.77867946]
[1674202815418,0.0512793,20967.0,20966.0,3.77866872]
[1674202816974,0.0512793,20967.0,20966.0,3.60745496]
[1674202817229,0.0512793,20967.0,20966.0,3.89329772]
[1674202818269,0.0512793,20967.0,20966.0,4.19329772]
[1674202818782,0.0512793,20967.0,20966.0,3.89329772]
[1674202819102,0.0512793,20967.0,20966.0,4.19329772]
[1674202819299,6e-05,20968.0,20967.0,0.49667041]
[1674202819565,6e-05,20968.0,20967.0,3.79980754]
[1674202819830,0.00657988,20970.0,20967.0,3.57150096]
[1674202820107,0.00657988,20970.0,20969.0,0.15]
[1674202820373,0.00657988,20970.0,20969.0,1.903629]
[1674202821166,0.00657988,20970.0,20969.0,1.939629]
[1674202821967,0.00657988,20970.0,20969.0,2.39342255]
[1674202822240,0.00957988,20970.0,20969.0,2.40042255]
[1674202824037,0.00957988,20970.0,20969.0,2.25042255]
[1674202832824,0.00957988,20970.0,20969.0,2.26599453]
[1674202838933,0.00957988,20970.0,20969.0,2.25050353]
[1674202843670,0.00957988,20970.0,20969.0,2.36465832]
[1674202846768,0.00957988,20970.0,20969.0,2.25050353]
[1674202846819,0.73324282,20970.0,20969.0,1.01235998]
[1674202847094,0.87280285,20970.0,20969.0,0.53546598]
[1674202847364,0.82862285,20970.0,20969.0,0.53546598]
[1674202847660,0.83892185,20970.0,20969.0,0.53546598]
[1674202847942,0.83892185,20970.0,20969.0,0.05857198]
[1674202847943,1.29161657,20970.0,20969.0,0.05857198]
[1674202848216,3.12617811,20970.0,20969.0,0.05857198]
[1674202848467,3.65290316,20970.0,20969.0,0.05857198]
[1674202848755,3.88137307,20970.0,20969.0,0.05857198]
[1674202849401,3.8813676,20970.0,20969.0,0.05857198]
[1674202849671,2.17195052,20970.0,20969.0,0.05857198]
[1674202850760,2.05760285,20970.0,20969.0,0.05857198]
[1674202851017,2.43123126,20970.0,20969.0,0.05857198]
[1674202851828,2.26006006,20970.0,20969.0,0.05857198]
[1674202853691,2.14594329,20970.0,20969.0,0.05857198]
[1674202855409,1.77231488,20970.0,20969.0,0.05857198]
[1674202855653,2.21283114,20970.0,20969.0,0.05857198]
[1674202856124,1.87431814,20970.0,20969.0,0.05857198]
[1674202856265,2.21098614,20970.0,20969.0,0.05857198]
[1674202856492,1.77046988,20970.0,20969.0,0.05857198]
[1674202856771,2.14964619,20970.0,20969.0,0.05857198]
[1674202858181,1.97916619,20970.0,20969.0,0.05857198]
[1674202858674,1.92941219,20970.0,20969.0,0.05857198]
[1674202859154,1.97352919,20970.0,20969.0,0.05857198]
[1674202860119,1.97248319,20970.0,20969.0,0.05857198]
[1674202860334,2.41296619,20970.0,20969.0,0.05857198]
[1674202860615,2.42397119,20970.0,20969.0,0.05857198]
[1674202861262,1.64249819,20970.0,20969.0,0.05857198]
[1674202861506,1.97202819,20970.0,20969.0,0.05857198]
[1674202862210,1.64249819,20970.0,20969.0,0.05857198]
[1674202862451,1.97481819,20970.0,20969.0,0.05857198]
[1674202864605,1.59564188,20970.0,20969.0,0.05845232]
[1674202865016,1.98126511,20970.0,20969.0,0.05845232]
[1674202867840,1.97452411,20970.0,20969.0,0.05845232]
[1674202868112,1.64894511,20970.0,20969.0,0.05845232]
[1674202868421,1.95946411,20970.0,20969.0,0.05845232]
[1674202868672,1.64894511,20970.0,20969.0,0.05845232]
[1674202871581,0.00957988,20970.0,20969.0,0.05845232]
[1674202871842,0.00957988,20970.0,20969.0,0.20845232]
[1674202873079,0.00957988,20970.0,20969.0,0.51113932]
[1674202873339,0.00957988,20970.0,20969.0,0.20845232]
[1674202874356,0.00957988,20970.0,20969.0,0.53990332]
[1674202875139,0.00957988,20970.0,20969.0,1.0171145]
[1674202875408,0.00957988,20970.0,20969.0,0.68534632]
[1674202875979,0.00957988,20970.0,20969.0,1.01430732]
[1674202876518,0.00957988,20970.0,20969.0,1.00248132]
[1674202876777,0.00957988,20970.0,20969.0,0.68534632]
[1674202877036,0.00957988,20970.0,20969.0,1.16224032]
[1674202877597,0.00957988,20970.0,20969.0,1.47835732]
[1674202877869,0.00957988,20970.0,20969.0,1.8876488]
[1674202878319,0.00957988,20970.0,20969.0,1.47835732]
[1674202878581,0.00957988,20970.0,20969.0,1.16224032]
[1674202878884,0.00957988,20970.0,20969.0,1.48159332]
[1674202879364,0.00957988,20970.0,20969.0,1.16224032]
[1674202880351,0.00957988,20970.0,20969.0,1.47728932]
[1674202881099,0.00957988,20970.0,20969.0,1.16224032]
[1674202882884,0.00957988,20970.0,20969.0,1.47100832]
[1674202884151,0.00957988,20970.0,20969.0,0.84411432]
[1674202884410,0.39220152,20970.0,20969.0,0.53534632]
[1674202884663,0.69220152,20970.0,20969.0,0.53534632]
[1674202886956,0.39220152,20970.0,20969.0,0.53534632]
[1674202887835,0.69220152,20970.0,20969.0,0.53534632]
[1674202888083,0.39220152,20970.0,20969.0,0.53534632]
[1674202888330,0.69220152,20970.0,20969.0,0.53534632]
[1674202889412,0.69220152,20970.0,20969.0,0.05845232]
[1674202890205,1.01246752,20970.0,20969.0,0.05845232]
[1674202891713,1.12658429,20970.0,20969.0,0.05845232]
[1674202893747,1.01246752,20970.0,20969.0,0.05845232]
[1674202894004,1.16907252,20970.0,20969.0,0.05845232]
[1674202894511,1.61640629,20970.0,20969.0,0.05845232]
[1674202894766,1.57355429,20970.0,20969.0,0.05845232]
[1674202895024,1.57355429,20970.0,20969.0,0.05283412]
[1674202895535,1.28318929,20970.0,20969.0,0.05283412]
[1674202895787,1.62325829,20970.0,20969.0,0.05283412]
[1674202896800,1.28318929,20970.0,20969.0,0.05283412]
[1674202897051,1.60669329,20970.0,20969.0,0.05283412]
[1674202898072,1.28318929,20970.0,20969.0,0.05283412]
[1674202898292,1.59256029,20970.0,20969.0,0.05283412]
[1674202899072,1.28318929,20970.0,20969.0,0.05283412]
[1674202899319,1.60693129,20970.0,20969.0,0.05283412]
[1674202900379,0.80631829,20970.0,20969.0,0.05283412]
[1674202900680,1.13378529,20970.0,20969.0,0.05283412]
[1674202900946,1.61065629,20970.0,20969.0,0.05283412]
[1674202901186,1.59989729,20970.0,20969.0,0.05283412]
[1674202901996,1.12302629,20970.0,20969.0,0.05283412]
[1674202904773,1.44419749,20970.0,20969.0,0.05283412]
[1674202905011,1.50279452,20970.0,20969.0,0.05283412]
[1674202905224,2.93353325,20970.0,20969.0,0.05283412]
[1674202905445,4.60459656,20970.0,20969.0,0.05283412]
[1674202905661,3.9667271,20970.0,20969.0,0.05283412]
[1674202905932,4.43327805,20970.0,20969.0,0.05283412]
[1674202906120,4.48307179,20970.0,20969.0,0.02722685]
[1674202906345,5.00811777,20970.0,20969.0,0.02722685]
[1674202907518,5.78221835,20970.0,20969.0,0.02722685]
[1674202907738,5.43917063,20970.0,20969.0,0.02722685]
[1674202907968,5.43917063,20970.0,20969.0,0.02257198]
[1674202908198,4.95356844,20970.0,20969.0,0.01557198]
[1674202908452,5.00390364,20970.0,20969.0,0.01557198]
[1674202908705,4.95346802,20970.0,20969.0,0.00535069]
[1674202908925,5.43607021,20970.0,20969.0,0.01496992]
[1674202909146,6.85713027,20970.0,20969.0,0.01496992]
[1674202909369,6.60717393,20970.0,20969.0,0.01496992]
[1674202909606,5.43607021,20970.0,20969.0,0.01496992]
[1674202909835,5.28067224,20970.0,20969.0,0.00535069]
[1674202910058,5.57130567,20970.0,20969.0,0.00535069]
[1674202910291,5.62243406,20970.0,20969.0,0.00535069]
[1674202910514,5.21302904,20970.0,20969.0,0.00535069]
[1674202911056,5.16485406,20970.0,20969.0,0.00535069]
[1674202911478,5.62064758,20970.0,20969.0,0.00535069]
[1674202911765,5.21302904,20970.0,20969.0,0.00535069]
[1674202912427,4.87126722,20970.0,20969.0,0.00535069]
[1674202912704,5.27888576,20970.0,20969.0,0.00535069]
[1674202913186,5.62064758,20970.0,20969.0,0.00535069]
[1674202913409,5.21302904,20970.0,20969.0,0.00535069]
[1674202914601,5.62064758,20970.0,20969.0,0.00535069]
[1674202915948,5.7451912,20970.0,20969.0,0.00535069]
[1674202916202,5.33757266,20970.0,20969.0,0.00535069]
[1674202916389,5.7451912,20970.0,20969.0,0.00535069]
[1674202916659,5.33757266,20970.0,20969.0,0.00535069]
[1674202918511,5.33757266,20970.0,20969.0,0.00184623]
[1674202918712,5.7451912,20970.0,20969.0,6.23e-06]
[1674202918976,5.377e-05,20968.0,20964.0,0.036]
[1674202919197,0.28428586,20966.0,20964.0,0.036]
[1674202919419,2.53336469,20965.0,20961.0,0.41675809]
[1674202919649,0.50119497,20964.0,20961.0,0.41675809]
[1674202919925,1.093738,20963.0,20962.0,0.46075396]
[1674202920112,1.570768,20963.0,20962.0,0.46075396]
[1674202920357,1.570768,20963.0,20960.0,0.00896445]
[1674202920615,0.306874,20962.0,20960.0,0.44336843]
[1674202920848,0.315013,20961.0,20960.0,0.00896445]
[1674202921308,0.477076,20961.0,20960.0,0.00896445]
[1674202921526,1.087523,20961.0,20960.0,0.00896445]
[1674202921749,0.777076,20961.0,20960.0,0.00896445]
[1674202921979,1.094879,20961.0,20960.0,0.00896445]
[1674202922271,0.777076,20961.0,20960.0,0.00896445]
[1674202922454,1.105459,20961.0,20960.0,0.00896445]
[1674202922685,0.777076,20961.0,20960.0,0.00896445]
[1674202922910,0.792076,20961.0,20960.0,0.00896445]
[1674202923601,1.106281,20961.0,20960.0,0.00896445]
[1674202923828,0.792076,20961.0,20960.0,0.00896445]
[1674202924059,1.111724,20961.0,20960.0,0.00896445]
[1674202924285,1.11726,20961.0,20960.0,0.00896445]
[1674202924992,0.792076,20961.0,20960.0,0.00896445]
[1674202925233,1.136721,20961.0,20960.0,0.00896445]
[1674202925894,1.11236095,20961.0,20960.0,0.00896445]
[1674202926118,1.44176395,20961.0,20960.0,0.00896445]
[1674202926740,1.11236095,20961.0,20960.0,0.00896445]
[1674202927009,1.44255895,20961.0,20960.0,0.00896445]
[1674202927805,1.11236095,20961.0,20960.0,0.00896445]
[1674202928600,0.95507795,20961.0,20960.0,0.00896445]
[1674202929135,0.63528495,20961.0,20960.0,0.00896445]
[1674202929377,0.94369195,20961.0,20960.0,0.00896445]
[1674202929647,0.63528495,20961.0,20960.0,0.00896445]
[1674202931690,1.58943695,20961.0,20960.0,0.00896445]
[1674202931936,1.90782695,20961.0,20960.0,0.00896445]
[1674202932787,1.58943695,20961.0,20960.0,0.00896445]
[1674202933000,1.91238695,20961.0,20960.0,0.00896445]
[1674202933533,1.58943695,20961.0,20960.0,0.00896445]
[1674202933786,1.90603595,20961.0,20960.0,0.00896445]
[1674202934563,1.58943695,20961.0,20960.0,0.00896445]
[1674202934818,1.90929595,20961.0,20960.0,0.00896445]
[1674202935076,1.58943695,20961.0,20960.0,0.00896445]
[1674202935333,2.39789295,20961.0,20960.0,0.00896445]
[1674202935641,2.06651295,20961.0,20960.0,0.00896445]
[1674202935884,2.39789295,20961.0,20960.0,0.00896445]
[1674202936395,1.746228,20961.0,20960.0,0.00896445]
[1674202936708,2.65217745,20961.0,20960.0,0.00896445]
[1674202936921,2.39295606,20961.0,20960.0,0.00896445]
[1674202939789,2.37795606,20961.0,20960.0,0.00896445]
[1674202940322,2.51195606,20961.0,20960.0,0.00896445]
[1674202943649,2.51195606,20961.0,20960.0,0.00884846]
[1674202944669,2.6256704,20961.0,20960.0,0.00884846]
[1674202946230,2.51195606,20961.0,20960.0,0.00884846]
[1674202946757,2.6256704,20961.0,20960.0,0.00884846]
[1674202947316,4.42988576,20961.0,20960.0,0.00884846]
[1674202947575,4.42024026,20961.0,20960.0,0.00884846]
[1674202947851,4.82016764,20961.0,20960.0,0.00884846]
[1674202948377,4.42024026,20961.0,20960.0,0.00884846]
[1674202948645,4.87840893,20961.0,20960.0,0.0046169]
[1674202949152,4.83023395,20961.0,20960.0,0.0046169]
[1674202949401,4.48047639,20961.0,20960.0,0.0046169]
[1674202949939,4.68761942,20961.0,20960.0,0.0046169]
[1674202950448,4.82294873,20961.0,20960.0,0.00154155]
[1674202950703,5.10914873,20961.0,20960.0,0.00154155]
[1674202951493,4.76767639,20961.0,20960.0,0.00154155]
[1674202951758,4.63267639,20961.0,20960.0,0.00154155]
[1674202952003,4.76867639,20961.0,20960.0,0.00154155]
[1674202952495,5.11014873,20961.0,20960.0,0.00154155]
[1674202953019,4.72050141,20961.0,20960.0,0.00154155]
[1674202953556,4.76867639,20961.0,20960.0,0.00154155]
[1674202953819,5.25127858,20961.0,20960.0,0.00154155]
[1674202954090,5.59275092,20961.0,20960.0,0.00154155]